[Event "*** Titled Tuesday Blitz"]
[Site "Chess.com"]
[Date "2020.04.07"]
[Round "1"]
[White "silverback96"]
[Black "jmduque"]
[Result "1-0"]
[WhiteElo "2076"]
[BlackElo "2503"]
[TimeControl "180+1"]
[EndTime "13:03:59 PDT"]
[Termination "silverback96 won by resignation"]

1. d4 {[%clk 0:02:59.3]} 1... Nf6 {[%clk 0:02:59.2]} 2. c4 {[%clk 0:02:59.5]}
2... b6 {[%clk 0:02:59.6]} 3. f3 {[%clk 0:02:58.7]} 3... Bb7 {[%clk 0:02:59.8]}
4. e4 {[%clk 0:02:58.6]} 4... e6 {[%clk 0:02:51.3]} 5. Nc3 {[%clk 0:02:57.1]}
5... d5 {[%clk 0:02:50.1]} 6. e5 {[%clk 0:02:56.6]} 6... Nfd7 {[%clk 0:02:49.5]}
7. cxd5 {[%clk 0:02:55]} 7... exd5 {[%clk 0:02:49.9]} 8. Bb5 {[%clk 0:02:11]}
8... Be7 {[%clk 0:02:45.1]} 9. f4 {[%clk 0:02:05.2]} 9... O-O {[%clk 0:02:43.6]}
10. Nf3 {[%clk 0:02:05.1]} 10... c5 {[%clk 0:02:30.7]} 11. O-O {[%clk
0:01:55.8]} 11... cxd4 {[%clk 0:02:25.8]} 12. Nxd4 {[%clk 0:01:56.7]} 12... Nc5
{[%clk 0:02:26.1]} 13. f5 {[%clk 0:01:46.5]} 13... Ne4 {[%clk 0:02:21.1]} 14. f6
{[%clk 0:01:44.6]} 14... gxf6 {[%clk 0:02:20.2]} 15. Bh6 {[%clk 0:01:33.9]}
15... fxe5 {[%clk 0:02:17.3]} 16. Qg4+ {[%clk 0:01:29.5]} 16... Bg5 {[%clk
0:02:12.4]} 17. Nxe4 {[%clk 0:01:27.8]} 17... Bc8 {[%clk 0:01:58.4]} 18. Nf5
{[%clk 0:01:18.3]} 18... f6 {[%clk 0:01:53.1]} 19. Nxg5 {[%clk 0:01:15.7]} 19...
fxg5 {[%clk 0:01:53]} 20. Bxg5 {[%clk 0:01:16.6]} 20... Bxf5 {[%clk 0:01:50]}
21. Rxf5 {[%clk 0:01:15.9]} 21... Qc8 {[%clk 0:01:50.4]} 1-0

[Event "*** Titled Tuesday Blitz"]
[Site "Chess.com"]
[Date "2020.04.07"]
[Round "1"]
[White "littleozy"]
[Black "HansCoolNiemann"]
[Result "0-1"]
[WhiteElo "2472"]
[BlackElo "2934"]
[TimeControl "180+1"]
[EndTime "13:04:00 PDT"]
[Termination "HansCoolNiemann won by resignation"]

1. d4 {[%clk 0:03:00.4]} 1... Nf6 {[%clk 0:02:54.9]} 2. Nc3 {[%clk 0:03:01.3]}
2... d5 {[%clk 0:02:54.7]} 3. Bg5 {[%clk 0:02:57.3]} 3... c6 {[%clk 0:02:48]} 4.
f3 {[%clk 0:02:46.6]} 4... h6 {[%clk 0:02:38.1]} 5. Bxf6 {[%clk 0:02:43.1]} 5...
exf6 {[%clk 0:02:37.1]} 6. e4 {[%clk 0:02:43.2]} 6... dxe4 {[%clk 0:02:35.5]} 7.
fxe4 {[%clk 0:02:44.1]} 7... Bb4 {[%clk 0:02:32.9]} 8. Nf3 {[%clk 0:02:42.2]}
8... O-O {[%clk 0:02:32.2]} 9. Bc4 {[%clk 0:02:08.4]} 9... c5 {[%clk 0:02:29.1]}
10. d5 {[%clk 0:02:02.1]} 10... Bg4 {[%clk 0:02:25.4]} 11. h3 {[%clk 0:01:55.8]}
11... Bxf3 {[%clk 0:02:24.4]} 12. Qxf3 {[%clk 0:01:56.7]} 12... Nd7 {[%clk
0:02:25]} 13. O-O {[%clk 0:01:44.7]} 13... Ne5 {[%clk 0:02:25]} 14. Qe2 {[%clk
0:01:44.4]} 14... a6 {[%clk 0:02:25.4]} 15. a3 {[%clk 0:01:42.5]} 15... Ba5
{[%clk 0:02:22.1]} 16. a4 {[%clk 0:01:28.5]} 16... Bc7 {[%clk 0:02:19.4]} 17. b3
{[%clk 0:01:24.2]} 17... Qd6 {[%clk 0:02:17.9]} 18. Rad1 {[%clk 0:01:00.3]}
18... Rfe8 {[%clk 0:02:16.8]} 19. g4 {[%clk 0:00:54.2]} 19... Nxc4 {[%clk
0:02:10.5]} 20. bxc4 {[%clk 0:00:52.7]} 20... Qg3+ {[%clk 0:02:09.5]} 0-1

[Event "*** Titled Tuesday Blitz"]
[Site "Chess.com"]
[Date "2020.04.07"]
[Round "1"]
[White "vova-79"]
[Black "KuzubovYuriy"]
[Result "0-1"]
[WhiteElo "2432"]
[BlackElo "2811"]
[TimeControl "180+1"]
[EndTime "13:04:16 PDT"]
[Termination "KuzubovYuriy won by resignation"]

1. d4 {[%clk 0:03:00.2]} 1... Nf6 {[%clk 0:02:58.6]} 2. c4 {[%clk 0:03:00.1]}
2... e6 {[%clk 0:02:56.4]} 3. Nc3 {[%clk 0:02:59.7]} 3... Bb4 {[%clk 0:02:55.6]}
4. e3 {[%clk 0:02:59.9]} 4... O-O {[%clk 0:02:52.5]} 5. Ne2 {[%clk 0:02:59.8]}
5... c6 {[%clk 0:02:50.4]} 6. a3 {[%clk 0:02:59.9]} 6... Ba5 {[%clk 0:02:50.5]}
7. Qc2 {[%clk 0:02:58.5]} 7... d5 {[%clk 0:02:48.7]} 8. Ng3 {[%clk 0:02:58.3]}
8... Nbd7 {[%clk 0:02:45.7]} 9. Be2 {[%clk 0:02:57]} 9... dxc4 {[%clk
0:02:42.1]} 10. Bxc4 {[%clk 0:02:56.9]} 10... e5 {[%clk 0:02:42]} 11. O-O {[%clk
0:02:56.7]} 11... exd4 {[%clk 0:02:40.6]} 12. exd4 {[%clk 0:02:57.6]} 12... Nb6
{[%clk 0:02:29.7]} 13. Ba2 {[%clk 0:02:56.6]} 13... Nbd5 {[%clk 0:02:29.6]} 14.
Bg5 {[%clk 0:02:45.3]} 14... h6 {[%clk 0:02:25.3]} 15. Bxf6 {[%clk 0:02:44.6]}
15... Nxf6 {[%clk 0:02:24.6]} 16. Rad1 {[%clk 0:02:45.1]} 16... Bxc3 {[%clk
0:02:21.9]} 17. bxc3 {[%clk 0:02:41.1]} 17... Qa5 {[%clk 0:02:21.3]} 18. Qb2
{[%clk 0:02:35.2]} 18... Nd5 {[%clk 0:02:06.1]} 19. Rd3 {[%clk 0:01:58.2]} 19...
Be6 {[%clk 0:01:47.6]} 20. f4 {[%clk 0:01:57.1]} 20... Rae8 {[%clk 0:01:36.9]}
21. c4 {[%clk 0:01:48.2]} 21... Nb6 {[%clk 0:01:32.6]} 22. Rc3 {[%clk
0:01:26.7]} 22... Na4 {[%clk 0:01:30.3]} 0-1

[Event "*** Titled Tuesday Blitz"]
[Site "Chess.com"]
[Date "2020.04.07"]
[Round "1"]
[White "Sviridov_Valery"]
[Black "dachessmandan"]
[Result "1-0"]
[WhiteElo "2733"]
[BlackElo "2387"]
[TimeControl "180+1"]
[EndTime "13:04:28 PDT"]
[Termination "Sviridov_Valery won by resignation"]

1. Nf3 {[%clk 0:03:00.2]} 1... Nf6 {[%clk 0:02:58.3]} 2. d4 {[%clk 0:03:00.2]}
2... e6 {[%clk 0:02:58.3]} 3. e3 {[%clk 0:03:00.7]} 3... b6 {[%clk 0:02:58.4]}
4. Nbd2 {[%clk 0:03:01.1]} 4... Bb7 {[%clk 0:02:59]} 5. Bd3 {[%clk 0:03:01.7]}
5... Be7 {[%clk 0:02:59.1]} 6. O-O {[%clk 0:03:02.2]} 6... O-O {[%clk
0:02:58.7]} 7. Qe2 {[%clk 0:03:02.8]} 7... d6 {[%clk 0:02:59]} 8. e4 {[%clk
0:03:03.1]} 8... Nbd7 {[%clk 0:02:59.2]} 9. e5 {[%clk 0:03:01]} 9... dxe5 {[%clk
0:02:54.4]} 10. dxe5 {[%clk 0:03:01.9]} 10... Nd5 {[%clk 0:02:51.9]} 11. Ne4
{[%clk 0:02:59.1]} 11... Nb4 {[%clk 0:02:42.5]} 12. Bc4 {[%clk 0:02:57.2]} 12...
Nc5 {[%clk 0:02:36.5]} 13. Nxc5 {[%clk 0:02:54]} 13... Bxc5 {[%clk 0:02:37.4]}
14. c3 {[%clk 0:02:49]} 14... Nd5 {[%clk 0:02:25.5]} 15. Bd3 {[%clk 0:02:47.4]}
15... g6 {[%clk 0:01:44.1]} 16. Bh6 {[%clk 0:02:44.4]} 16... Re8 {[%clk
0:01:43.9]} 17. Rad1 {[%clk 0:02:44.6]} 17... Qe7 {[%clk 0:01:37.6]} 18. a3
{[%clk 0:02:35.5]} 18... a5 {[%clk 0:01:09.8]} 19. c4 {[%clk 0:02:33.9]} 19...
Nb4 {[%clk 0:00:59.3]} 20. axb4 {[%clk 0:02:33.4]} 20... axb4 {[%clk 0:01:00.2]}
21. Be4 {[%clk 0:02:29.1]} 21... Bxe4 {[%clk 0:00:58.3]} 22. Qxe4 {[%clk
0:02:30]} 22... Ra2 {[%clk 0:00:58.4]} 23. Rd2 {[%clk 0:02:28.6]} 23... Rea8
{[%clk 0:00:55.1]} 24. h4 {[%clk 0:02:26.1]} 24... Ra1 {[%clk 0:00:54.1]} 25.
Rxa1 {[%clk 0:02:24.5]} 25... Rxa1+ {[%clk 0:00:55]} 26. Kh2 {[%clk 0:02:25.3]}
26... f5 {[%clk 0:00:53.6]} 27. exf6 {[%clk 0:02:23.4]} 27... Qxf6 {[%clk
0:00:53.2]} 28. Bg5 {[%clk 0:02:15.9]} 28... Qf7 {[%clk 0:00:50]} 29. Rd8+
{[%clk 0:02:14.8]} 29... Kg7 {[%clk 0:00:49.4]} 30. Qe5+ {[%clk 0:02:14.7]} 1-0

[Event "*** Titled Tuesday Blitz"]
[Site "Chess.com"]
[Date "2020.04.07"]
[Round "1"]
[White "ChesterF"]
[Black "GHANDEEVAM2003"]
[Result "0-1"]
[WhiteElo "2483"]
[BlackElo "2969"]
[TimeControl "180+1"]
[EndTime "13:04:32 PDT"]
[Termination "GHANDEEVAM2003 won by resignation"]

1. d4 {[%clk 0:02:58.9]} 1... d5 {[%clk 0:02:59.1]} 2. c4 {[%clk 0:02:58.8]}
2... e6 {[%clk 0:02:59.2]} 3. Nc3 {[%clk 0:02:58.2]} 3... c6 {[%clk 0:02:58.5]}
4. Nf3 {[%clk 0:02:56.6]} 4... Nf6 {[%clk 0:02:58.4]} 5. Bg5 {[%clk 0:02:56.1]}
5... h6 {[%clk 0:02:57.3]} 6. Bh4 {[%clk 0:02:55.7]} 6... dxc4 {[%clk
0:02:57.2]} 7. e4 {[%clk 0:02:55.3]} 7... g5 {[%clk 0:02:57.7]} 8. Bg3 {[%clk
0:02:55.4]} 8... b5 {[%clk 0:02:57.9]} 9. Be2 {[%clk 0:02:53.2]} 9... Bb7 {[%clk
0:02:57.5]} 10. h4 {[%clk 0:02:49.9]} 10... g4 {[%clk 0:02:53.2]} 11. Ne5 {[%clk
0:02:50.2]} 11... Nbd7 {[%clk 0:02:52.3]} 12. Nxg4 {[%clk 0:02:48.1]} 12... Rg8
{[%clk 0:02:46.9]} 13. Nxf6+ {[%clk 0:02:00.9]} 13... Nxf6 {[%clk 0:02:47.8]}
14. e5 {[%clk 0:02:01.1]} 14... Nd5 {[%clk 0:02:45.3]} 15. O-O {[%clk
0:01:58.5]} 15... Qb6 {[%clk 0:02:43.8]} 16. Ne4 {[%clk 0:01:53.8]} 16... O-O-O
{[%clk 0:02:42.4]} 17. a4 {[%clk 0:01:53.2]} 17... a6 {[%clk 0:02:39.6]} 18. Rc1
{[%clk 0:01:41.7]} 18... Kb8 {[%clk 0:02:39.1]} 19. b3 {[%clk 0:01:35]} 19...
cxb3 {[%clk 0:02:28.1]} 20. Qxb3 {[%clk 0:01:17.8]} 20... Qxd4 {[%clk
0:02:25.1]} 21. axb5 {[%clk 0:01:17]} 21... cxb5 {[%clk 0:02:22.1]} 22. Nd6
{[%clk 0:01:03.1]} 22... Bxd6 {[%clk 0:02:11.6]} 23. exd6 {[%clk 0:01:02.9]}
23... Nf4 {[%clk 0:02:11.9]} 24. Bf3 {[%clk 0:00:50.7]} 24... Rxg3 {[%clk
0:02:11.2]} 25. Rfd1 {[%clk 0:00:46.4]} 25... Rxf3 {[%clk 0:02:10.8]} 26. Qxf3
{[%clk 0:00:41]} 26... Bxf3 {[%clk 0:02:09.8]} 27. Rxd4 {[%clk 0:00:41.9]} 27...
Ne2+ {[%clk 0:02:10.2]} 0-1

[Event "*** Titled Tuesday Blitz"]
[Site "Chess.com"]
[Date "2020.04.07"]
[Round "1"]
[White "tgpgoat"]
[Black "Crazy_girl99"]
[Result "0-1"]
[WhiteElo "2052"]
[BlackElo "2521"]
[TimeControl "180+1"]
[EndTime "13:04:33 PDT"]
[Termination "Crazy_girl99 won by resignation"]

1. e4 {[%clk 0:02:59.2]} 1... e5 {[%clk 0:02:57]} 2. Nf3 {[%clk 0:02:58.4]} 2...
Nc6 {[%clk 0:02:57.6]} 3. Bc4 {[%clk 0:02:58.2]} 3... Bc5 {[%clk 0:02:57.1]} 4.
c3 {[%clk 0:02:56.3]} 4... Nf6 {[%clk 0:02:57.2]} 5. d3 {[%clk 0:02:55.8]} 5...
d6 {[%clk 0:02:57]} 6. h3 {[%clk 0:02:53.9]} 6... a6 {[%clk 0:02:57.4]} 7. Bb3
{[%clk 0:02:53.3]} 7... Ba7 {[%clk 0:02:56.7]} 8. O-O {[%clk 0:02:52.3]} 8... h6
{[%clk 0:02:57.3]} 9. Re1 {[%clk 0:02:50.1]} 9... O-O {[%clk 0:02:57.3]} 10.
Nbd2 {[%clk 0:02:50]} 10... Re8 {[%clk 0:02:57.6]} 11. Nf1 {[%clk 0:02:50.2]}
11... Be6 {[%clk 0:02:57.9]} 12. Bc2 {[%clk 0:02:49.4]} 12... d5 {[%clk
0:02:57.9]} 13. exd5 {[%clk 0:02:49.4]} 13... Bxd5 {[%clk 0:02:57.1]} 14. Ng3
{[%clk 0:02:46.7]} 14... Qd7 {[%clk 0:02:53.4]} 15. Be3 {[%clk 0:02:21.8]} 15...
Bxe3 {[%clk 0:02:44.1]} 16. Rxe3 {[%clk 0:02:22.7]} 16... Rad8 {[%clk 0:02:44]}
17. Qe2 {[%clk 0:02:20.4]} 17... Qd6 {[%clk 0:02:23.6]} 18. Re1 {[%clk
0:02:09.5]} 18... b5 {[%clk 0:02:12.3]} 19. Nxe5 {[%clk 0:01:59.6]} 19... Nxe5
{[%clk 0:02:10.9]} 20. Rxe5 {[%clk 0:02:00.5]} 20... Rxe5 {[%clk 0:02:10.5]} 21.
Qxe5 {[%clk 0:02:01.4]} 21... Re8 {[%clk 0:02:10.6]} 22. Qxe8+ {[%clk
0:01:52.3]} 22... Nxe8 {[%clk 0:02:10.6]} 23. Rxe8+ {[%clk 0:01:53.2]} 23... Kh7
{[%clk 0:02:11.3]} 24. d4+ {[%clk 0:01:04.2]} 24... g6 {[%clk 0:02:09.8]} 25.
Ne4 {[%clk 0:01:04]} 25... Qf4 {[%clk 0:02:08.4]} 26. g3 {[%clk 0:00:46.1]}
26... Qc1+ {[%clk 0:02:08.1]} 27. Kh2 {[%clk 0:00:46.3]} 27... Qxc2 {[%clk
0:02:06.3]} 28. Nf6+ {[%clk 0:00:46.2]} 28... Kg7 {[%clk 0:02:06.9]} 29. Nxd5
{[%clk 0:00:45.9]} 29... Qxf2+ {[%clk 0:02:07.5]} 30. Kh1 {[%clk 0:00:45]} 30...
Qf3+ {[%clk 0:02:07.3]} 0-1

[Event "*** Titled Tuesday Blitz"]
[Site "Chess.com"]
[Date "2020.04.07"]
[Round "1"]
[White "Leo_C"]
[Black "Harut-1998"]
[Result "0-1"]
[WhiteElo "2323"]
[BlackElo "2651"]
[TimeControl "180+1"]
[EndTime "13:04:34 PDT"]
[Termination "Harut-1998 won by resignation"]

1. d4 {[%clk 0:02:52.5]} 1... Nf6 {[%clk 0:02:59.1]} 2. c4 {[%clk 0:02:52.3]}
2... e6 {[%clk 0:02:59.1]} 3. Nc3 {[%clk 0:02:52.1]} 3... Bb4 {[%clk 0:02:58]}
4. Qc2 {[%clk 0:02:51.9]} 4... O-O {[%clk 0:02:52.7]} 5. Nf3 {[%clk 0:02:51.3]}
5... b6 {[%clk 0:02:50.4]} 6. e4 {[%clk 0:02:47.5]} 6... d6 {[%clk 0:02:38.5]}
7. Bd3 {[%clk 0:02:46.5]} 7... Nfd7 {[%clk 0:02:22]} 8. O-O {[%clk 0:02:44]}
8... e5 {[%clk 0:02:16.6]} 9. a3 {[%clk 0:02:34.6]} 9... Bxc3 {[%clk 0:02:15.1]}
10. bxc3 {[%clk 0:02:34]} 10... Nc6 {[%clk 0:02:12.6]} 11. Be3 {[%clk
0:02:26.3]} 11... Qe7 {[%clk 0:02:05.6]} 12. Rfe1 {[%clk 0:02:14.3]} 12... Na5
{[%clk 0:02:04.2]} 13. Qe2 {[%clk 0:02:06.5]} 13... c5 {[%clk 0:02:02.8]} 14.
Nd2 {[%clk 0:01:59.4]} 14... Ba6 {[%clk 0:01:58.7]} 15. f4 {[%clk 0:01:51.1]}
15... f6 {[%clk 0:01:54.6]} 16. d5 {[%clk 0:01:50.7]} 16... exf4 {[%clk
0:01:51.7]} 17. Bxf4 {[%clk 0:01:50.1]} 17... Ne5 {[%clk 0:01:52.6]} 18. Rab1
{[%clk 0:01:44]} 18... Rae8 {[%clk 0:01:49.1]} 19. Kh1 {[%clk 0:01:42.7]} 19...
Qc7 {[%clk 0:01:48]} 20. Qf1 {[%clk 0:01:37.6]} 20... Qd7 {[%clk 0:01:47.2]} 21.
Be2 {[%clk 0:01:36.6]} 21... Qa4 {[%clk 0:01:44]} 22. Nf3 {[%clk 0:01:27.9]}
22... Bxc4 {[%clk 0:01:35.3]} 23. Nxe5 {[%clk 0:01:26]} 23... fxe5 {[%clk
0:01:34.7]} 24. Bxc4 {[%clk 0:01:25.6]} 24... Nxc4 {[%clk 0:01:23.8]} 0-1

[Event "*** Titled Tuesday Blitz"]
[Site "Chess.com"]
[Date "2020.04.07"]
[Round "1"]
[White "Vojtastr"]
[Black "m-garcett"]
[Result "1-0"]
[WhiteElo "2508"]
[BlackElo "1903"]
[TimeControl "180+1"]
[EndTime "13:04:34 PDT"]
[Termination "Vojtastr won by resignation"]

1. c4 {[%clk 0:02:59.5]} 1... Nf6 {[%clk 0:02:59]} 2. Nc3 {[%clk 0:02:57.8]}
2... g6 {[%clk 0:02:55.5]} 3. e4 {[%clk 0:02:57.2]} 3... d6 {[%clk 0:02:53.7]}
4. d4 {[%clk 0:02:56.9]} 4... Bg7 {[%clk 0:02:54.2]} 5. Nf3 {[%clk 0:02:57.2]}
5... O-O {[%clk 0:02:53.4]} 6. Be2 {[%clk 0:02:57.1]} 6... e5 {[%clk 0:02:48.1]}
7. d5 {[%clk 0:02:57]} 7... Nc6 {[%clk 0:02:48.4]} 8. dxc6 {[%clk 0:02:56.4]}
8... bxc6 {[%clk 0:02:45.9]} 9. Bg5 {[%clk 0:02:49.9]} 9... Be6 {[%clk
0:02:40.5]} 10. O-O {[%clk 0:02:45.7]} 10... h6 {[%clk 0:02:41]} 11. Bh4 {[%clk
0:02:45.2]} 11... Qe8 {[%clk 0:02:36.2]} 12. Nd2 {[%clk 0:02:42.7]} 12... Nh7
{[%clk 0:02:34.8]} 13. c5 {[%clk 0:02:16.4]} 13... f5 {[%clk 0:02:27.8]} 14. f3
{[%clk 0:02:16.2]} 14... f4 {[%clk 0:02:22.5]} 15. cxd6 {[%clk 0:02:11.6]} 15...
g5 {[%clk 0:02:22.8]} 16. Bf2 {[%clk 0:02:10.5]} 16... cxd6 {[%clk 0:02:22.7]}
17. Nc4 {[%clk 0:02:10]} 17... d5 {[%clk 0:02:09.8]} 18. Nd6 {[%clk 0:01:16.8]}
18... Qd7 {[%clk 0:01:53.1]} 19. exd5 {[%clk 0:01:15.2]} 19... cxd5 {[%clk
0:01:45.1]} 20. Nxd5 {[%clk 0:01:13.7]} 20... Rad8 {[%clk 0:01:31.4]} 21. Bc5
{[%clk 0:01:08.6]} 21... Qc6 {[%clk 0:01:29.4]} 22. Ne7+ {[%clk 0:01:08.2]}
22... Kh8 {[%clk 0:01:27.4]} 23. Nxc6 {[%clk 0:01:09.1]} 1-0

[Event "*** Titled Tuesday Blitz"]
[Site "Chess.com"]
[Date "2020.04.07"]
[Round "1"]
[White "Qvalda"]
[Black "theprosecution1"]
[Result "0-1"]
[WhiteElo "2421"]
[BlackElo "2801"]
[TimeControl "180+1"]
[EndTime "13:04:35 PDT"]
[Termination "theprosecution1 won by checkmate"]

1. e4 {[%clk 0:02:56.2]} 1... e6 {[%clk 0:02:59.7]} 2. d4 {[%clk 0:02:55.8]}
2... d5 {[%clk 0:03:00.3]} 3. Bd3 {[%clk 0:02:56.3]} 3... Nf6 {[%clk 0:02:58.4]}
4. e5 {[%clk 0:02:56.1]} 4... Nfd7 {[%clk 0:02:58.2]} 5. c3 {[%clk 0:02:54.4]}
5... c5 {[%clk 0:02:58.7]} 6. Ne2 {[%clk 0:02:54]} 6... Nc6 {[%clk 0:02:58.3]}
7. a3 {[%clk 0:02:52.2]} 7... f6 {[%clk 0:02:58.1]} 8. exf6 {[%clk 0:02:41.1]}
8... Nxf6 {[%clk 0:02:59]} 9. O-O {[%clk 0:02:37.3]} 9... Bd6 {[%clk 0:02:58.9]}
10. dxc5 {[%clk 0:02:24.8]} 10... Bxc5 {[%clk 0:02:59]} 11. b4 {[%clk
0:02:24.5]} 11... Bd6 {[%clk 0:02:59.3]} 12. c4 {[%clk 0:02:18.9]} 12... O-O
{[%clk 0:02:58.7]} 13. cxd5 {[%clk 0:01:18.6]} 13... exd5 {[%clk 0:02:46.5]} 14.
h3 {[%clk 0:01:12.2]} 14... Kh8 {[%clk 0:02:45.1]} 15. Bb2 {[%clk 0:01:10.4]}
15... Bd7 {[%clk 0:02:42.1]} 16. Nd2 {[%clk 0:01:09.7]} 16... Nh5 {[%clk
0:02:35.6]} 17. Nb3 {[%clk 0:00:54.9]} 17... Qh4 {[%clk 0:02:32.4]} 18. Nbd4
{[%clk 0:00:33]} 18... Bxh3 {[%clk 0:02:19.9]} 19. gxh3 {[%clk 0:00:33.2]} 19...
Qxh3 {[%clk 0:02:19.1]} 20. f4 {[%clk 0:00:32.7]} 20... Nxf4 {[%clk 0:02:08.6]}
21. Nxf4 {[%clk 0:00:28]} 21... Rxf4 {[%clk 0:02:09.5]} 22. Rxf4 {[%clk
0:00:24.1]} 22... Bxf4 {[%clk 0:02:10.4]} 23. Nf3 {[%clk 0:00:17.6]} 23... Be3#
{[%clk 0:02:09.3]} 0-1

[Event "*** Titled Tuesday Blitz"]
[Site "Chess.com"]
[Date "2020.04.07"]
[Round "1"]
[White "MergenKakabaev"]
[Black "sandromareco"]
[Result "0-1"]
[WhiteElo "2465"]
[BlackElo "2905"]
[TimeControl "180+1"]
[EndTime "13:04:38 PDT"]
[Termination "sandromareco won by resignation"]

1. e4 {[%clk 0:03:00.6]} 1... c6 {[%clk 0:02:59.3]} 2. d4 {[%clk 0:02:59.7]}
2... d5 {[%clk 0:02:59.4]} 3. e5 {[%clk 0:02:59.6]} 3... Bf5 {[%clk 0:02:59.4]}
4. h4 {[%clk 0:02:58.8]} 4... h6 {[%clk 0:02:54]} 5. g4 {[%clk 0:02:56.9]} 5...
Be4 {[%clk 0:02:53.5]} 6. f3 {[%clk 0:02:55.6]} 6... Bh7 {[%clk 0:02:54]} 7. Bd3
{[%clk 0:02:54.2]} 7... Bxd3 {[%clk 0:02:52.4]} 8. Qxd3 {[%clk 0:02:54.3]} 8...
e6 {[%clk 0:02:53]} 9. Nc3 {[%clk 0:02:52.2]} 9... c5 {[%clk 0:02:53]} 10. Be3
{[%clk 0:02:51.3]} 10... Nc6 {[%clk 0:02:52.9]} 11. Nge2 {[%clk 0:02:49.8]}
11... h5 {[%clk 0:02:48.2]} 12. gxh5 {[%clk 0:02:48.6]} 12... Nge7 {[%clk
0:02:45.9]} 13. Ng3 {[%clk 0:02:21.8]} 13... cxd4 {[%clk 0:02:43.6]} 14. Bxd4
{[%clk 0:02:21.7]} 14... Nxd4 {[%clk 0:02:43.5]} 15. Qxd4 {[%clk 0:02:22.6]}
15... Nc6 {[%clk 0:02:43.4]} 16. Qa4 {[%clk 0:02:20.6]} 16... Qd7 {[%clk
0:02:40]} 17. f4 {[%clk 0:02:20.3]} 17... Bb4 {[%clk 0:02:30.2]} 18. Ne2 {[%clk
0:02:06.5]} 18... Rxh5 {[%clk 0:02:26]} 19. O-O-O {[%clk 0:02:05]} 19... O-O-O
{[%clk 0:02:17.6]} 20. a3 {[%clk 0:02:01.3]} 20... Be7 {[%clk 0:02:16.3]} 21.
Nb5 {[%clk 0:01:48.6]} 21... a6 {[%clk 0:02:10.5]} 22. Nbd4 {[%clk 0:01:48.4]}
22... Nxe5 {[%clk 0:02:07.6]} 23. Qb3 {[%clk 0:01:44.7]} 23... Nc4 {[%clk
0:02:02]} 24. Ng3 {[%clk 0:01:41.3]} 24... Rxh4 {[%clk 0:02:01.1]} 25. Rxh4
{[%clk 0:01:35.5]} 25... Bxh4 {[%clk 0:02:00.7]} 26. Rh1 {[%clk 0:01:33.7]}
26... Bf6 {[%clk 0:01:58.7]} 27. Nf3 {[%clk 0:01:31.5]} 27... Bxb2+ {[%clk
0:01:56.8]} 28. Kb1 {[%clk 0:01:31]} 28... Bf6 {[%clk 0:01:54.8]} 29. f5 {[%clk
0:01:29]} 29... e5 {[%clk 0:01:48.8]} 30. Nh5 {[%clk 0:01:25.5]} 30... e4 {[%clk
0:01:45.6]} 0-1

[Event "*** Titled Tuesday Blitz"]
[Site "Chess.com"]
[Date "2020.04.07"]
[Round "1"]
[White "bait_or_mate"]
[Black "guilhermedeola"]
[Result "1-0"]
[WhiteElo "2521"]
[BlackElo "2050"]
[TimeControl "180+1"]
[EndTime "13:04:40 PDT"]
[Termination "bait_or_mate won by resignation"]

1. d4 {[%clk 0:03:00.9]} 1... d5 {[%clk 0:02:59.9]} 2. c4 {[%clk 0:03:00.7]}
2... e6 {[%clk 0:02:59.9]} 3. Nf3 {[%clk 0:03:00.5]} 3... Nf6 {[%clk 0:02:59.6]}
4. g3 {[%clk 0:03:00.7]} 4... Bb4+ {[%clk 0:02:56.2]} 5. Nbd2 {[%clk 0:03:00.2]}
5... O-O {[%clk 0:02:53]} 6. Bg2 {[%clk 0:03:00.5]} 6... c6 {[%clk 0:02:38.8]}
7. O-O {[%clk 0:03:00]} 7... Re8 {[%clk 0:02:28.7]} 8. b3 {[%clk 0:02:59.3]}
8... Nbd7 {[%clk 0:02:26.4]} 9. Bb2 {[%clk 0:02:58.8]} 9... Nf8 {[%clk
0:02:26.7]} 10. Re1 {[%clk 0:02:57.7]} 10... Ng6 {[%clk 0:02:27]} 11. a3 {[%clk
0:02:54.4]} 11... Ba5 {[%clk 0:02:24.4]} 12. b4 {[%clk 0:02:53.5]} 12... Bc7
{[%clk 0:02:18.1]} 13. e4 {[%clk 0:02:52.9]} 13... dxe4 {[%clk 0:02:10.8]} 14.
Nxe4 {[%clk 0:02:53.8]} 14... e5 {[%clk 0:02:03.8]} 15. dxe5 {[%clk 0:02:45.7]}
15... Qxd1 {[%clk 0:02:03.4]} 16. Raxd1 {[%clk 0:02:46.6]} 16... Nxe5 {[%clk
0:02:00.9]} 17. Nxe5 {[%clk 0:02:42.3]} 17... Bxe5 {[%clk 0:01:55.9]} 18. Bxe5
{[%clk 0:02:26.3]} 18... Rxe5 {[%clk 0:01:54.9]} 19. Nxf6+ {[%clk 0:02:26.8]}
19... gxf6 {[%clk 0:01:54]} 20. Rxe5 {[%clk 0:02:27.4]} 20... fxe5 {[%clk
0:01:53.9]} 21. Rd8+ {[%clk 0:02:28.1]} 21... Kg7 {[%clk 0:01:53.4]} 22. Bh3
{[%clk 0:02:28.5]} 22... Bxh3 {[%clk 0:01:50]} 23. Rxa8 {[%clk 0:02:28.5]} 23...
Be6 {[%clk 0:01:49.3]} 24. Rxa7 {[%clk 0:02:27.6]} 24... Bxc4 {[%clk 0:01:43.8]}
25. Rxb7 {[%clk 0:02:27.7]} 25... Bd5 {[%clk 0:01:38.9]} 26. Rc7 {[%clk
0:02:23.7]} 26... Kf8 {[%clk 0:01:38.3]} 27. a4 {[%clk 0:02:23.6]} 27... Ke8
{[%clk 0:01:38.8]} 28. a5 {[%clk 0:02:24]} 28... Kd8 {[%clk 0:01:39.3]} 29. Rb7
{[%clk 0:02:23.5]} 29... Bc4 {[%clk 0:01:38.1]} 30. Rb6 {[%clk 0:02:23]} 30...
Kc7 {[%clk 0:01:33.5]} 31. f3 {[%clk 0:02:23.2]} 31... h6 {[%clk 0:01:27.2]} 32.
Kf2 {[%clk 0:02:23.1]} 32... f6 {[%clk 0:01:23.5]} 33. Ke3 {[%clk 0:02:22.6]}
33... Bd5 {[%clk 0:01:20.2]} 34. b5 {[%clk 0:02:17.2]} 34... cxb5 {[%clk
0:01:10.2]} 35. Rxb5 {[%clk 0:02:18.1]} 35... Bc6 {[%clk 0:01:05.3]} 36. Rc5
{[%clk 0:02:15.6]} 36... Kb7 {[%clk 0:01:03.6]} 37. Rxc6 {[%clk 0:02:13.6]}
37... Kxc6 {[%clk 0:01:01.9]} 38. Ke4 {[%clk 0:02:14.1]} 1-0